fUSD/lending_fUSD_20251024
["ID","MTS","AMOUNT","RATE_DAILY","PERIOD"]
[392296295,1761321044399,-6587.44161778,0.00040186,6]
[392296296,1761321044408,-1218.45664031,0.00040186,30]
[392296297,1761321044419,-500.0,0.00040186,30]
[392296298,1761321044428,-5549.6464388,0.00040187,2]
[392296299,1761321044437,-19511.0551917,0.00040187,2]
[392296300,1761321044448,-4340.6144904,0.00040187,2]
[392296301,1761321044458,-2053.73277269,0.00040188,6]
[392296302,1761321044470,-2053.73277269,0.00040189,6]
[392296303,1761321044481,-186268.66174577,0.0004019,6]
[392296304,1761321044491,-0.62506773,0.0004019,6]
[392296305,1761321046187,-152.0,0.00035945,3]
[392296306,1761321046197,-152.0,0.00038721,4]
[392296307,1761321046208,-696.48,0.0003928,2]
[392296308,1761321046217,-547.6,0.0003998,2]
[392296309,1761321046227,-168.52,0.0003998,2]
[392296310,1761321046237,-151.0,0.00040175,120]
[392296311,1761321046247,-151.0,0.00040175,120]
[392296312,1761321046258,-352.861373,0.00040175,120]
[392296313,1761321046268,-939.5693479,0.0004019,6]
[392296315,1761321265655,168.22,0.00019331,2]
[392296316,1761321265825,168.22,0.00028996,2]
[392296318,1761321734307,250.0,0.00017,2]
[392296319,1761321913145,631.38125524,0.0002999,2]
[392296346,1761322231956,-1251.80357744,0.0002739,2]
[392296348,1761322232198,-451.94081067,0.0002739,2]
[392296349,1761322232208,-1000.0,0.00032,2]
[392296350,1761322232218,-988.19,0.00032,2]
[392296351,1761322232227,-24.99402933,0.00032855,30]
[392296352,1761322232239,-143.79597067,0.00032855,30]
[392296353,1761322232248,-168.79,0.00034495,30]
[392296354,1761322232258,-480.0,0.00035,3]
[392296355,1761322232267,-829.0,0.00035199,3]
[392296356,1761322232277,-168.23399195,0.000352,120]
[392296357,1761322232356,-2083.10424689,0.000352,120]
[392296358,1761322232366,-150.0,0.00035293,120]
[392296359,1761322232376,-189.72,0.00035826,2]
[392296360,1761322232386,-168.79,0.00036135,60]
[392296361,1761322232396,-150.0,0.00036197,7]
[392296362,1761322232406,-150.0,0.00036197,7]
[392296363,1761322232416,-240.0,0.00036208,3]
[392296364,1761322232427,-457.0,0.00036209,3]
[392296365,1761322232436,-150.0,0.0003621,120]
[392296366,1761322232446,-150.0,0.00036599,7]
[392296367,1761322232456,-150.0,0.00036645,120]
[392296369,1761322232466,-166.66,0.00036662,30]
[392296372,1761322232476,-150.0,0.00036732,2]
[392296374,1761322232486,-155.0,0.00036755,2]
[392296376,1761322232496,-24544.0,0.00036755,30]
[392296377,1761322232505,-156.656,0.00036755,2]
[392296378,1761322232514,-150.0,0.00037002,7]
[392296379,1761322232524,-274.0,0.00037136,2]
[392296380,1761322232534,-240.1831944,0.000372,120]
[392296381,1761322232544,-168.0,0.00037331,2]
[392296382,1761322232553,-274.0,0.00037391,120]
[392296383,1761322232563,-150.0,0.00037404,7]
[392296384,1761322232572,-166.66,0.00037434,30]
[392296385,1761322232582,-168.0,0.00037438,2]
[392296386,1761322232591,-275.22469773,0.00037613,15]
[392296387,1761322232601,-23461.63,0.00037614,2]
[392296388,1761322232611,-16388.6,0.00037647,2]
[392296389,1761322232620,-476.11845244,0.000377,5]
[392296390,1761322232630,-500.0,0.000377,5]
[392296391,1761322232639,-168.79,0.00037775,60]
[392296392,1761322232649,-1212.2394593,0.00037777,2]
[392296393,1761322232659,-168.0,0.00037801,2]
[392296394,1761322232668,-150.0,0.00037806,7]
[392296395,1761322232679,-666.0,0.00037807,3]
[392296396,1761322232689,-386.94,0.00037944,2]
[392296397,1761322232698,-3629.53,0.00037945,2]
[392296398,1761322232710,-168.0,0.00038029,2]
[392296399,1761322232720,-168.0,0.00038118,2]
[392296400,1761322232730,-486.37,0.00038194,2]
[392296401,1761322232740,-166.66,0.00038205,30]
[392296402,1761322232750,-150.0,0.00038208,7]
[392296403,1761322232760,-1000.0,0.00038248,5]
[392296404,1761322232769,-500.0,0.00038266,30]
[392296405,1761322232780,-500.0,0.00038269,30]
[392296406,1761322232791,-500.0,0.0003827,30]
[392296407,1761322232801,-500.0,0.00038309,30]
[392296408,1761322232812,-696.48,0.00038321,2]
[392296409,1761322232822,-475.59,0.00038321,2]
[392296410,1761322232831,-475.59,0.00038321,2]
[392296411,1761322232841,-475.59,0.00038321,2]
[392296412,1761322233188,-696.48,0.00038321,2]
[392296413,1761322233198,-475.59,0.00038321,2]
[392296414,1761322233208,-475.59,0.00038321,2]
[392296415,1761322233218,-951.18,0.00038321,2]
[392296416,1761322233227,-166.66,0.00038341,2]
[392296417,1761322233237,-500.0,0.00038352,30]
[392296418,1761322233247,-500.0,0.00038354,30]
[392296419,1761322233258,-500.0,0.00038375,30]
[392296420,1761322233267,-500.0,0.00038399,30]
[392296421,1761322233276,-500.0,0.0003841,30]
[392296422,1761322233286,-275.0,0.00038425,120]
[392296423,1761322233295,-334.943,0.00038428,51]
[392296424,1761322233305,-2300.0,0.00038458,7]
[392296425,1761322233314,-600.0,0.00038458,7]
[392296426,1761322233324,-800.0,0.00038458,7]
[392296427,1761322233333,-500.0,0.00038559,30]
[392296428,1761322233342,-500.0,0.00038591,30]
[392296429,1761322233351,-150.0,0.0003861,7]
[392296430,1761322233361,-21762.62,0.00038655,2]
[392296431,1761322233370,-500.0,0.0003866,30]
[392296432,1761322233379,-168.22,0.00038661,2]
[392296433,1761322233389,-300.0,0.00038772,7]
[392296434,1761322233398,-500.0,0.00038779,30]
[392296435,1761322233407,-500.0,0.00038779,30]
[392296436,1761322233417,-392.77690881,0.00038796,5]
[392296437,1761322233427,-275.0,0.00038829,2]
[392296438,1761322233436,-500.0,0.00038867,30]
[392296439,1761322233446,-2428.88221562,0.00038953,2]
[392296440,1761322233456,-500.0,0.0003896,30]
[392296441,1761322233466,-166.66,0.00038977,30]
[392296442,1761322233475,-792.23832199,0.00039,3]
[392296443,1761322233484,-500.0,0.00039008,30]
[392296444,1761322233494,-150.0,0.00039013,7]
[392296445,1761322233504,-696.48,0.00039041,2]
[392296446,1761322233513,-500.0,0.00039082,30]
[392296447,1761322233523,-275.0,0.00039095,7]
[392296448,1761322233533,-1425.0,0.00039098,2]
[392296449,1761322233543,-150.0,0.00039152,2]
[392296450,1761322233553,-547.6,0.00039158,2]
[392296451,1761322233562,-337.04,0.00039158,2]
[392296452,1761322233572,-414.35,0.00039158,2]
[392296453,1761322233582,-547.6,0.00039158,2]
[392296454,1761322233591,-414.35,0.00039158,2]
[392296455,1761322233602,-547.6,0.00039158,2]
[392296456,1761322233611,-413.17,0.00039158,2]
[392296457,1761322233621,-185.35,0.00039178,2]
[392296458,1761322233632,-414.35,0.00039178,2]
[392296459,1761322233642,-7198.96252932,0.0003918,2]
[392296460,1761322233651,-763.01403,0.000392,20]
[392296461,1761322233660,-1000.0,0.0003921,2]
[392296462,1761322233670,-903.0,0.00039214,2]
[392296463,1761322233680,-1185.0,0.00039214,2]
[392296464,1761322233689,-6539.0,0.00039214,2]
[392296465,1761322233699,-6456.0,0.00039214,2]
[392296466,1761322233712,-3487.0,0.00039214,2]
[392296467,1761322233723,-274.0,0.00039226,2]
[392296468,1761322233732,-200.7149973,0.00039279,2]
[392296469,1761322233742,-10964.06218748,0.00039279,2]
[392296470,1761322233753,-1392.96,0.0003928,2]
[392296471,1761322233763,-1390.71,0.0003928,2]
[392296472,1761322233773,-696.48,0.0003928,2]
[392296473,1761322233784,-696.48,0.0003928,2]
[392296474,1761322233795,-696.48,0.0003928,2]
[392296475,1761322233805,-475.59,0.0003928,2]
[392296476,1761322233814,-696.48,0.0003928,2]
[392296477,1761322233824,-696.48,0.0003928,2]
[392296478,1761322233834,-475.59,0.0003928,2]
[392296479,1761322233844,-475.59,0.0003928,2]
[392296480,1761322233854,-696.48,0.0003928,2]
[392296481,1761322233864,-475.59,0.0003928,2]
[392296482,1761322233874,-696.48,0.0003928,2]
[392296483,1761322233883,-475.59,0.0003928,2]
[392296484,1761322233893,-475.59,0.0003928,2]
[392296485,1761322233903,-696.48,0.0003928,2]
[392296486,1761322233913,-475.59,0.0003928,2]
[392296487,1761322233923,-696.48,0.0003928,2]
[392296488,1761322233933,-475.59,0.0003928,2]
[392296489,1761322233942,-696.48,0.0003928,2]
[392296490,1761322233952,-696.48,0.0003928,2]
[392296491,1761322233962,-931.72,0.0003928,2]
[392296492,1761322233972,-696.48,0.0003928,2]
[392296493,1761322233982,-696.48,0.0003928,2]
[392296494,1761322233992,-893.94,0.0003928,2]
[392296495,1761322234002,-475.59,0.0003928,2]
[392296496,1761322234013,-696.48,0.0003928,2]
[392296497,1761322234022,-475.59,0.0003928,2]
[392296498,1761322234032,-475.59,0.0003928,2]
[392296499,1761322234042,-475.59,0.0003928,2]
[392296500,1761322234052,-475.59,0.0003928,2]
[392296501,1761322234062,-246.32,0.0003928,2]
[392296502,1761322234072,-2300.0,0.0003928,7]
[392296503,1761322234081,-600.0,0.0003928,7]
[392296504,1761322234091,-800.0,0.0003928,7]
[392296505,1761322234100,-696.48,0.00039284,2]
[392296506,1761322234110,-696.48,0.00039286,2]
[392296507,1761322234120,-500.0,0.00039291,30]
[392296508,1761322234130,-500.0,0.00039344,30]
[392296509,1761322234139,-500.0,0.00039349,30]
[392296510,1761322234149,-500.0,0.00039355,7]
[392296511,1761322234158,-500.0,0.00039355,7]
[392296512,1761322234168,-500.0,0.00039355,7]
[392296513,1761322234177,-500.0,0.00039355,7]
[392296514,1761322234187,-500.0,0.00039355,7]
[392296515,1761322234197,-500.0,0.00039355,7]
[392296516,1761322234207,-500.0,0.00039355,7]
[392296517,1761322234217,-231.6,0.00039355,7]
[392296518,1761322234226,-500.0,0.00039355,7]
[392296519,1761322234236,-500.0,0.00039355,7]
[392296520,1761322234246,-500.0,0.00039355,7]
[392296521,1761322234256,-500.0,0.00039355,7]
[392296522,1761322234270,-500.0,0.00039355,7]
[392296523,1761322234279,-500.0,0.00039355,7]
[392296524,1761322234289,-500.0,0.00039355,7]
[392296525,1761322234298,-500.0,0.00039355,7]
[392296526,1761322234308,-500.0,0.00039355,7]
[392296527,1761322234318,-500.0,0.00039355,7]
[392296528,1761322234327,-500.0,0.00039355,7]
[392296529,1761322234336,-500.0,0.00039355,7]
[392296530,1761322234346,-500.0,0.00039355,7]
[392296531,1761322234355,-500.0,0.00039355,7]
[392296532,1761322234365,-500.0,0.00039355,7]
[392296533,1761322234374,-500.0,0.00039355,7]
[392296534,1761322234384,-500.0,0.00039355,7]
[392296535,1761322234394,-500.0,0.00039355,7]
[392296536,1761322234404,-500.0,0.00039355,7]
[392296537,1761322234413,-500.0,0.00039355,7]
[392296538,1761322234423,-500.0,0.00039355,7]
[392296539,1761322234432,-500.0,0.00039355,7]
[392296540,1761322234442,-500.0,0.00039355,7]
[392296541,1761322234452,-500.0,0.00039355,7]
[392296542,1761322234461,-500.0,0.00039355,7]
[392296543,1761322234471,-500.0,0.00039355,7]
[392296544,1761322234480,-500.0,0.00039355,7]
[392296545,1761322234489,-500.0,0.00039355,7]
[392296546,1761322234499,-500.77,0.00039355,7]
[392296547,1761322234508,-500.0,0.00039355,7]
[392296548,1761322234518,-500.0,0.00039355,7]
[392296549,1761322234528,-500.0,0.00039355,7]
[392296550,1761322234537,-500.0,0.00039355,7]
[392296551,1761322234547,-500.0,0.00039355,7]
[392296552,1761322234557,-500.0,0.00039355,7]
[392296553,1761322234567,-500.0,0.00039355,7]
[392296554,1761322234576,-500.0,0.00039355,7]
[392296555,1761322234587,-500.0,0.00039355,7]
[392296556,1761322234597,-500.0,0.00039355,7]
[392296557,1761322234607,-500.0,0.00039355,7]
[392296558,1761322234616,-500.0,0.00039355,7]
[392296559,1761322234625,-868.61,0.00039355,30]
[392296560,1761322234634,-547.74,0.00039378,2]
[392296561,1761322234643,-7198.96252924,0.00039412,2]
[392296562,1761322234653,-150.0,0.00039415,7]
[392296563,1761322234663,-168.79,0.00039416,60]
[392296564,1761322234673,-168.0,0.00039425,2]
[392296565,1761322234682,-877.22814603,0.00039449,2]
[392296566,1761322234691,-557.52114489,0.00039452,60]
[392296567,1761322234700,-3036.62678972,0.00039491,2]
[392296568,1761322234714,-509.83784598,0.00039494,30]
[392296569,1761322234723,-1000.0,0.000395,7]
[392296570,1761322234733,-500.0,0.00039507,30]
[392296571,1761322234743,-150.0,0.00039579,120]
[392296572,1761322234753,-180.4704,0.000396,2]
[392296573,1761322234763,-300.0,0.000396,14]
[392296574,1761322234773,-2500.0,0.000396,2]
[392296575,1761322234784,-166.66,0.00039606,2]
[392296576,1761322234796,-868.61,0.00039629,30]
[392296577,1761322234806,-1425.0,0.00039633,2]
[392296578,1761322234815,-7198.96252924,0.00039644,2]
[392296579,1761322234825,-877.22814603,0.00039661,2]
[392296580,1761322234835,-153.13337244,0.00039697,14]
[392296581,1761322234844,-500.0,0.00039699,30]
[392296582,1761322234854,-33170.7581,0.000397,2]
[392296583,1761322234863,-1000.0,0.000397,2]
[392296584,1761322234873,-2000.0,0.000397,2]
[392296585,1761322234882,-3002.0415,0.000397,2]
[392296586,1761322234891,-1027.1159,0.000397,2]
[392296587,1761322234901,-233.7175,0.000397,2]
[392296588,1761322234910,-1000.0,0.000397,2]
[392296589,1761322234920,-993.8659353,0.000397,12]
[392296590,1761322234929,-8501.2952314,0.000397,2]
[392296591,1761322234939,-600.0,0.000397,14]
[392296592,1761322234948,-516.6200901,0.00039711,30]
[392296593,1761322234958,-168.0,0.00039712,2]
[392296594,1761322234967,-500.0,0.00039726,15]
[392296595,1761322234977,-500.0,0.00039726,15]
[392296596,1761322234988,-401.48259709,0.00039726,15]
[392296597,1761322234997,-401.48259709,0.00039726,15]
[392296598,1761322235007,-500.0,0.00039726,15]
[392296599,1761322235016,-500.0,0.00039726,15]
[392296600,1761322235026,-500.0,0.00039726,15]
[392296601,1761322235036,-500.0,0.00039726,15]
[392296602,1761322235047,-500.0,0.00039726,15]
[392296603,1761322235056,-500.0,0.00039726,15]
[392296604,1761322235065,-500.0,0.00039726,15]
[392296605,1761322235075,-500.0,0.00039726,15]
[392296606,1761322235084,-198.68213592,0.00039726,15]
[392296607,1761322235093,-166.66,0.00039749,30]
[392296608,1761322235103,-500.0,0.00039756,30]
[392296609,1761322235113,-500.9464449,0.00039773,5]
[392296610,1761322235123,-500.0,0.00039773,5]
[392296611,1761322235133,-501.31462523,0.00039773,5]
[392296612,1761322235143,-503.07324151,0.00039773,5]
[392296613,1761322235152,-500.0,0.00039773,5]
[392296614,1761322235162,-166.89002745,0.00039773,5]
[392296615,1761322235171,-500.0,0.00039773,5]
[392296616,1761322235181,-500.0,0.00039773,5]
[392296617,1761322235191,-500.0,0.00039773,5]
[392296618,1761322235201,-500.0,0.00039773,5]
[392296619,1761322235211,-500.30913434,0.00039773,5]
[392296620,1761322235223,-500.0,0.00039773,5]
[392296621,1761322235233,-160.2103039,0.00039773,5]
[392296622,1761322235243,-500.0,0.00039773,5]
[392296623,1761322235253,-500.0,0.00039773,5]
[392296624,1761322235263,-160.26537923,0.00039773,5]
[392296625,1761322235273,-459.64253915,0.00039773,2]
[392296626,1761322235285,-500.0,0.00039773,5]
[392296627,1761322235295,-500.0,0.00039773,5]
[392296628,1761322235304,-160.20702108,0.00039773,2]
[392296629,1761322235314,-500.0,0.00039773,5]
[392296630,1761322235323,-163.8511214,0.00039773,5]
[392296631,1761322235332,-500.0,0.00039773,5]
[392296632,1761322235342,-500.0,0.00039773,5]
[392296633,1761322235352,-360.43011227,0.00039773,5]
[392296634,1761322235362,-500.0,0.00039789,2]
[392296635,1761322235372,-18197.48851013,0.0003979,2]
[392296636,1761322235382,-98113.0470686,0.0003979,3]
[392296637,1761322235392,-1218.45664031,0.00039799,30]
[392296638,1761322235402,-500.0,0.00039799,30]
[392296639,1761322235411,-500.0,0.00039799,30]
[392296640,1761322235421,-500.0,0.00039799,7]
[392296641,1761322235432,-500.0,0.00039799,30]
[392296642,1761322235442,-199.0,0.00039799,7]
[392296643,1761322235451,-500.0,0.00039799,30]
[392296644,1761322235461,-500.0,0.00039799,30]
[392296645,1761322235470,-82724.46345011,0.000398,2]
[392296646,1761322235486,-27084.38129124,0.000398,2]
[392296647,1761322235497,-19355.2533299,0.000398,2]
[392296648,1761322235510,-63741.80312875,0.000398,2]
[392296649,1761322235519,-900.0,0.000398,14]
[392296650,1761322235530,-1000.0,0.000398,7]
[392296651,1761322235539,-150.0,0.00039817,7]
[392296652,1761322235548,-168.0,0.00039818,2]
[392296653,1761322235558,-500.0,0.00039842,30]
[392296654,1761322235568,-189.72,0.00039845,14]
[392296655,1761322235578,-1425.0,0.00039853,2]
[392296656,1761322235589,-15976.9182941,0.00039864,3]
[392296657,1761322235599,-150.0,0.0003987,14]
[392296658,1761322235608,-8501.29523132,0.00039874,2]
[392296659,1761322235618,-500.0,0.00039875,30]
[392296660,1761322235628,-7198.96252924,0.00039876,15]
[392296661,1761322235637,-539.02847384,0.0003988,30]
[392296662,1761322235647,-500.0,0.00039885,30]
[392296663,1761322235656,-6317.56836621,0.0003989,3]
[392296664,1761322235678,-13305.04104749,0.0003989,3]
[392296665,1761322235688,-15976.9182941,0.0003989,3]
[392296666,1761322235699,-300.0,0.0003989,7]
[392296667,1761322235710,-206.10271691,0.000399,120]
[392296668,1761322235727,-164.594613,0.000399,120]
[392296669,1761322235737,-187.55493399,0.000399,120]
[392296670,1761322235747,-1259.99641469,0.000399,120]
[392296688,1761322238026,-558.0,0.00039214,2]
[392296689,1761322238037,-563.9,0.0003949,5]
[392296690,1761322238049,-1157.1,0.0003949,5]
[392296691,1761322238059,-500.0,0.00039773,5]
[392296692,1761322238069,-157.67669232,0.00039773,5]
[392296693,1761322238079,-500.0,0.00039799,2]
[392296694,1761322238088,-528.5264719,0.000399,120]
[392296695,1761322238098,-181.04145176,0.000399,120]
[392296696,1761322238107,-10015.95746026,0.000399,2]
[392296697,1761322238117,-178.46872865,0.000399,120]
[392296698,1761322238127,-215.57209124,0.000399,120]
[392296699,1761322238137,-220.63770462,0.000399,120]
[392296700,1761322238147,-150.0,0.000399,60]
[392296701,1761322238158,-1200.0,0.000399,14]
[392296702,1761322238168,-868.61,0.00039903,30]
[392296703,1761322238178,-528.51413319,0.00039909,30]
[392296704,1761322238188,-500.0,0.0003991,2]
[392296705,1761322238197,-500.0,0.00039922,30]
[392296706,1761322238207,-168.0,0.00039938,2]
[392296708,1761322238217,-150.0,0.0003994,120]
[392296710,1761322238227,-500.0,0.00039952,30]
[392296712,1761322238237,-900.0,0.00039954,30]
[392296713,1761322238248,-150.0,0.00039955,60]
[392296714,1761322238257,-274.0,0.00039962,7]
[392296715,1761322238267,-515.7909494,0.00039975,30]
[392296716,1761322238277,-31953.8365882,0.0003998,3]
[392296717,1761322238286,-10110.7181711,0.0003999,3]
[392296718,1761322238299,-2203.0,0.0003999,3]
[392296719,1761322238310,-1422.41859326,0.0003999,3]
[392296720,1761322238337,-2202.05857,0.0003999,3]
[392296721,1761322238351,-2506.09710681,0.0003999,3]
[392296722,1761322238364,-2343.46774871,0.0003999,3]
[392296723,1761322238383,-3413.73097492,0.0003999,3]
[392296724,1761322240201,-350.5871001,0.00039773,5]
[392296725,1761322240211,-34666.3370764,0.0003999,3]
[392296726,1761322240221,-63907.6731764,0.0003999,3]
[392296727,1761322240230,-877.22814605,0.00039998,2]
[392296728,1761322240240,-5000.0,0.0004,120]
[392296729,1761322240249,-2700.00000007,0.0004,10]
[392296730,1761322240259,-618.45,0.0004,120]
[392296731,1761322240269,-5000.626911,0.0004,3]
[392296732,1761322240279,-2515.35927002,0.0004,2]
[392296733,1761322240288,-250.0,0.0004,120]
[392296734,1761322240298,-250.0,0.0004,120]
[392296735,1761322240308,-250.0,0.0004,120]
[392296736,1761322240317,-99869.29192068,0.0004,120]
[392296737,1761322240327,-200.0,0.0004,120]
[392296738,1761322240337,-151.0,0.0004,120]
[392296739,1761322240347,-151.0,0.0004,120]
[392296740,1761322240356,-151.0,0.0004,120]
[392296741,1761322240366,-151.0,0.0004,120]
[392296742,1761322240375,-172.917227,0.0004,120]
[392296743,1761322240385,-151.0,0.0004,120]
[392296744,1761322240395,-151.0,0.0004,120]
[392296745,1761322240405,-151.0,0.0004,120]
[392296746,1761322240415,-151.0,0.0004,120]
[392296747,1761322240424,-151.0,0.0004,120]
[392296748,1761322240435,-161.490235,0.0004,120]
[392296749,1761322240444,-151.0,0.0004,120]
[392296750,1761322240454,-151.0,0.0004,120]
[392296751,1761322240464,-238.009537,0.0004,120]
[392296752,1761322240474,-1857.118388,0.0004,120]
[392296753,1761322240483,-151.0,0.0004,120]
[392296754,1761322240493,-151.0,0.0004,120]
[392296755,1761322240503,-151.0,0.0004,120]
[392296756,1761322240513,-151.0,0.0004,120]
[392296757,1761322240523,-238.009537,0.0004,120]
[392296758,1761322240532,-1857.118388,0.0004,120]
[392296759,1761322240543,-161.490235,0.0004,120]
[392296760,1761322240552,-211.305828,0.0004,120]
[392296761,1761322240564,-151.0,0.0004,120]
[392296762,1761322240573,-151.0,0.0004,120]
[392296763,1761322240583,-157.284157,0.0004,120]
[392296764,1761322240593,-1857.118388,0.0004,120]
[392296765,1761322240602,-151.0,0.0004,120]
[392296766,1761322240611,-238.009537,0.0004,120]
[392296767,1761322240621,-176.284834,0.0004,120]
[392296768,1761322240631,-161.490235,0.0004,120]
[392296769,1761322240640,-157.284157,0.0004,120]
[392296770,1761322240650,-151.0,0.0004,120]
[392296771,1761322240659,-238.009537,0.0004,120]
[392296772,1761322240670,-176.284834,0.0004,120]
[392296773,1761322240681,-1857.118388,0.0004,120]
[392296774,1761322240690,-151.0,0.0004,120]
[392296775,1761322240701,-151.0,0.0004,120]
[392296776,1761322240713,-161.490235,0.0004,120]
[392296777,1761322240723,-157.284157,0.0004,120]
[392296778,1761322240733,-176.284834,0.0004,120]
[392296779,1761322240743,-151.0,0.0004,120]
[392296780,1761322240754,-151.0,0.0004,120]
[392296781,1761322240763,-176.284834,0.0004,120]
[392296782,1761322240772,-157.284157,0.0004,120]
[392296783,1761322240782,-151.0,0.0004,120]
[392296784,1761322240793,-151.0,0.0004,120]
[392296785,1761322240803,-1646.543171,0.0004,30]
[392296786,1761322240812,-1646.543171,0.0004,30]
[392296787,1761322240822,-165.477883,0.0004,120]
[392296788,1761322240832,-151.0,0.0004,60]
[392296789,1761322240842,-1646.543171,0.0004,30]
[392296790,1761322240852,-151.0,0.0004,60]
[392296791,1761322240861,-165.477883,0.0004,120]
[392296792,1761322240871,-722.258401,0.0004,120]
[392296793,1761322240881,-151.0,0.0004,60]
[392296794,1761322240891,-1646.543171,0.0004,30]
[392296795,1761322240901,-165.477883,0.0004,120]
[392296796,1761322240911,-215.068226,0.0004,30]
[392296797,1761322240921,-786.644853,0.0004,120]
[392296798,1761322240931,-722.258401,0.0004,120]
[392296799,1761322240940,-165.477883,0.0004,120]
[392296800,1761322240950,-786.644853,0.0004,120]
[392296801,1761322240959,-215.068226,0.0004,30]
[392296802,1761322240970,-722.258401,0.0004,120]
[392296803,1761322240979,-786.644853,0.0004,120]
[392296804,1761322240988,-215.068226,0.0004,30]
[392296805,1761322240998,-786.644853,0.0004,120]
[392296806,1761322241008,-215.068226,0.0004,30]
[392296807,1761322241017,-151.0,0.0004,120]
[392296808,1761322241027,-722.258401,0.0004,120]
[392296809,1761322241037,-151.0,0.0004,120]
[392296810,1761322241047,-151.0,0.0004,120]
[392296811,1761322241056,-151.0,0.0004,120]
[392296812,1761322241066,-2942.624385,0.0004,120]
[392296813,1761322241076,-151.0,0.0004,120]
[392296814,1761322241086,-151.0,0.0004,120]
[392296815,1761322241096,-151.0,0.0004,120]
[392296816,1761322241105,-151.0,0.0004,120]
[392296817,1761322241116,-235.229253,0.0004,120]
[392296818,1761322241126,-151.0,0.0004,120]
[392296819,1761322241135,-2942.624385,0.0004,120]
[392296820,1761322241145,-151.0,0.0004,120]
[392296821,1761322241154,-151.0,0.0004,120]
[392296822,1761322241164,-235.229253,0.0004,120]
[392296823,1761322241174,-2942.624385,0.0004,120]
[392296824,1761322241183,-151.0,0.0004,120]
[392296825,1761322241193,-235.229253,0.0004,120]
[392296826,1761322241203,-151.0,0.0004,120]
[392296827,1761322241213,-2942.624385,0.0004,120]
[392296828,1761322241222,-235.229253,0.0004,120]
[392296829,1761322241232,-151.000001,0.0004,120]
[392296830,1761322241241,-417.201629,0.0004,120]
[392296831,1761322241250,-37427.45,0.0004,4]
[392296832,1761322241260,-454.457686,0.0004,120]
[392296833,1761322241270,-417.201629,0.0004,120]
[392296834,1761322241279,-454.457686,0.0004,120]
[392296835,1761322241288,-151.0,0.0004,120]
[392296836,1761322241298,-200.0,0.00040005,20]
[392296837,1761322241307,-200.0,0.0004001,60]
[392296838,1761322241317,-500.0,0.00040013,30]
[392296839,1761322241326,-9961.3857,0.00040024,2]
[392296840,1761322241337,-189.72,0.00040038,14]
[392296841,1761322241347,-8501.29523132,0.00040049,15]
[392296842,1761322241357,-724.20910418,0.00040079,2]
[392296843,1761322241366,-15976.9182941,0.0004008,3]
[392296844,1761322241376,-1691.94364256,0.00040082,120]
[392296845,1761322241385,-160.56398269,0.00040088,14]
[392296846,1761322241395,-981.91736031,0.00040089,2]
[392296847,1761322241404,-39245.2188275,0.0004009,3]
[392296848,1761322241414,-31953.8365882,0.0004009,3]